bitfinex/quotes_SOLUSD_20241110
["timestamp","ask_amount","ask_price","bid_price","bid_amount"]
[1731206209751,22.0654,201.36,201.32,8.5107626]
[1731206210239,22.0654,201.36,201.33,8.5107626]
[1731206210444,22.0654,201.41,201.35,8.5107626]
[1731206210649,22.0654,201.41,201.3,34.0430504]
[1731206210650,160.7,201.4,201.38,8.5107626]
[1731206211063,6.5239,201.41,201.39,8.5107626]
[1731206211243,6.5239,201.41,201.4,8.5107626]
[1731206211555,22.0654,201.46,201.4,8.5107626]
[1731206211769,22.0654,201.46,201.41,8.5107626]
[1731206212266,15.5415,201.52,201.45,8.5107626]
[1731206212465,15.5415,201.52,201.47,8.5107626]
[1731206212763,15.5415,201.52,201.41,23.776884]
[1731206212764,15.5415,201.52,201.49,8.5107626]
[1731206212952,15.5415,201.52,201.43,23.776884]
[1731206213163,15.5415,201.52,201.49,13.4667626]
[1731206213460,15.5415,201.52,201.48,13.28337252]
[1731206213639,6.5239,201.55,201.5,13.28337252]
[1731206213838,6.5239,201.55,201.51,13.28337252]
[1731206214748,6.5239,201.55,201.52,13.28337252]
[1731206214950,6.5239,201.55,201.49,13.28337252]
[1731206215257,0.12549,201.54,201.42,4.956]
[1731206215553,13.28337252,201.52,201.45,13.28337252]
[1731206215867,160.7,201.53,201.47,13.28337252]
[1731206216169,160.7,201.52,201.47,13.28337252]
[1731206216379,160.7,201.52,201.42,4.956]
[1731206216380,160.7,201.52,201.46,13.28337252]
[1731206217265,147.41662748,201.45,201.4,13.28337252]
[1731206217462,147.41662748,201.44,201.41,23.776884]
[1731206219558,147.41662748,201.44,201.43,13.28337252]
[1731206219759,147.41662748,201.44,201.43,37.06025652]
[1731206220572,147.41662748,201.44,201.42,23.776884]
[1731206220751,147.41662748,201.44,201.43,37.06025652]
[1731206221078,147.41662748,201.44,201.43,13.28337252]
[1731206221764,134.13325496,201.4,201.38,7.099353]
[1731206221956,134.13325496,201.39,201.38,4.956]
[1731206222265,6.0135,201.47,201.38,4.956]
[1731206222472,160.7,201.46,201.38,4.956]
[1731206222765,160.7,201.46,201.34,4.956]
[1731206222989,160.7,201.46,201.42,13.28337252]
[1731206223479,160.7,201.46,201.33,18.17222745]
[1731206223480,13.28337252,201.43,201.37,13.28337252]
[1731206223646,13.28337252,201.42,201.36,13.28337252]
[1731206224049,13.28337252,201.41,201.35,13.28337252]
[1731206225174,13.28337252,201.42,201.35,13.28337252]
[1731206225379,13.28337252,201.43,201.36,13.28337252]
[1731206226871,13.28337252,201.42,201.35,13.28337252]
[1731206227282,13.28337252,201.42,201.36,13.28337252]
[1731206227460,13.28337252,201.43,201.36,13.28337252]
[1731206228564,13.28337252,201.42,201.35,13.28337252]
[1731206228962,147.41662748,201.33,201.31,28.732884]
[1731206229161,147.41662748,201.32,201.31,28.732884]
[1731206229352,145.41662748,201.32,201.31,28.732884]
[1731206230179,145.41662748,201.32,201.31,42.01625652]
[1731206230501,6.1135,201.47,201.31,118.48742138]
[1731206230502,6.0135,201.47,201.31,118.48742138]
[1731206230672,110.8,201.46,201.42,13.28337252]
[1731206230873,110.8,201.46,201.41,13.28337252]
[1731206231075,124.08337252,201.46,201.39,13.28337252]
[1731206231261,13.28337252,201.43,201.36,13.28337252]
[1731206231459,13.28337252,201.43,201.33,13.28337252]
[1731206231460,13.28337252,201.4,201.33,13.28337252]
[1731206231663,35.78057252,201.39,201.32,13.28337252]
[1731206231857,146.58057252,201.39,201.32,13.28337252]
[1731206232962,13.28337252,201.38,201.31,13.28337252]
[1731206233160,110.8,201.37,201.31,13.28337252]
[1731206233468,6.0854,201.39,201.36,13.28337252]
[1731206233662,6.0854,201.39,201.3,24.07312599]
[1731206233663,110.8,201.38,201.37,13.28337252]
[1731206235783,22.4972,201.44,201.37,13.28337252]
[1731206235987,110.8,201.43,201.37,13.28337252]
[1731206236582,110.8,201.35,201.32,13.28337252]
[1731206236782,110.8,201.34,201.32,13.28337252]
[1731206236983,110.8,201.34,201.31,13.28337252]
[1731206237966,110.8,201.34,201.32,13.28337252]
[1731206240985,13.28337252,201.39,201.32,13.28337252]
[1731206240986,110.8,201.33,201.32,13.28337252]
[1731206242768,97.51662748,201.28,201.25,4.956]
[1731206242972,86.91662748,201.27,201.25,13.28337252]
[1731206243172,86.91662748,201.27,201.24,13.28337252]
[1731206243690,86.91662748,201.27,201.26,13.28337252]
[1731206246689,86.91662748,201.27,201.25,13.28337252]
[1731206247299,86.91662748,201.27,201.24,13.28337252]
[1731206247477,86.91662748,201.27,201.23,13.28337252]
[1731206248197,86.91662748,201.26,201.23,13.28337252]
[1731206248497,86.91662748,201.25,201.23,13.28337252]
[1731206249400,86.91662748,201.25,201.24,13.28337252]
[1731206249697,86.91662748,201.25,201.24,42.01625652]
[1731206251093,86.91662748,201.25,201.24,37.06025652]
[1731206251897,86.91662748,201.32,201.25,23.776884]
[1731206252099,86.91662748,201.32,201.28,13.28337252]
[1731206252406,86.91662748,201.32,201.27,13.28337252]
[1731206253589,86.91662748,201.32,201.29,13.28337252]
[1731206254104,86.91662748,201.32,201.3,13.28337252]
[1731206254399,73.63325496,201.27,201.25,28.732884]
[1731206254600,58.93940839,201.26,201.25,28.732884]
[1731206254806,6.3617,201.36,201.25,41.03780233]
[1731206254979,39.5,201.35,201.34,13.28337252]
[1731206257707,16.0683,201.4,201.34,13.28337252]
[1731206257887,39.5,201.39,201.35,13.28337252]
[1731206258087,16.0683,201.4,201.35,13.28337252]
[1731206258088,39.5,201.38,201.35,13.28337252]
[1731206258286,39.5,201.38,201.36,13.28337252]
[1731206258607,6.0385,201.41,201.37,13.28337252]
[1731206258805,6.0385,201.41,201.39,13.28337252]
[1731206259102,39.5,201.4,201.39,13.28337252]
[1731206259690,16.0683,201.45,201.39,13.28337252]
[1731206260089,13.28337252,201.43,201.34,23.776884]
[1731206260402,39.5,201.42,201.37,13.28337252]
[1731206261709,39.5,201.42,201.38,13.28337252]
[1731206263903,39.5,201.41,201.38,13.28337252]
[1731206265007,39.5,201.41,201.39,13.28337252]
[1731206265196,39.5,201.4,201.39,13.28337252]
[1731206265392,39.5,201.4,201.37,13.28337252]
[1731206265708,39.5,201.4,201.33,37.06025652]
[1731206265892,39.5,201.39,201.33,37.06025652]
[1731206266289,52.78337252,201.39,201.32,13.28337252]
[1731206266510,39.5,201.38,201.32,13.28337252]
[1731206266901,39.5,201.37,201.32,13.28337252]
[1731206269804,39.5,201.37,201.31,18.23937252]
[1731206270697,39.5,201.36,201.31,18.23937252]
[1731206271419,39.5,201.36,201.31,13.28337252]
[1731206271605,39.5,201.36,201.29,23.776884]
[1731206271792,39.5,201.36,201.31,13.28337252]
[1731206271997,39.5,201.35,201.31,13.28337252]
[1731206272219,39.5,201.34,201.31,13.28337252]
[1731206272512,39.5,201.34,201.3,13.28337252]
[1731206272703,39.5,201.34,201.3,37.06025652]
[1731206273012,39.5,201.33,201.27,2.62981018]
[1731206273218,39.5,201.33,201.29,13.28337252]
[1731206273518,39.5,201.33,201.3,13.28337252]
[1731206273717,39.5,201.33,201.26,4.956]
[1731206273894,39.5,201.32,201.28,13.28337252]
[1731206274099,39.5,201.32,201.3,13.28337252]
[1731206275106,39.5,201.32,201.29,13.28337252]
[1731206275306,39.5,201.32,201.27,23.776884]
[1731206275511,39.5,201.32,201.28,13.28337252]
[1731206276817,39.5,201.32,201.29,13.28337252]
[1731206277417,39.5,201.32,201.31,13.28337252]
[1731206277596,22.1068,201.35,201.31,13.28337252]
[1731206278729,36.09157252,201.4,201.33,13.28337252]
[1731206279023,39.5,201.39,201.36,13.28337252]
[1731206279320,39.5,201.39,201.36,8.51078155]
[1731206279822,39.5,201.39,201.37,4.956]
[1731206280228,39.5,201.39,201.37,23.776884]
[1731206280601,39.5,201.39,201.36,23.776884]
[1731206281102,39.5,201.39,201.36,28.732884]
[1731206281304,39.5,201.39,201.36,23.776884]
[1731206282098,39.5,201.39,201.35,13.29884144]
[1731206282303,39.5,201.39,201.31,4.956]
[1731206282304,39.5,201.39,201.34,18.25484144]
[1731206282513,21.24515856,201.33,201.27,86.4496]
[1731206282711,6.64515856,201.32,201.29,13.29884144]
[1731206282909,6.64515856,201.32,201.3,13.29884144]
[1731206283114,6.64515856,201.32,201.31,13.29884144]
[1731206283914,6.64515856,201.32,201.31,37.07572544]
[1731206286629,6.64515856,201.32,201.31,23.776884]
[1731206286807,6.64515856,201.32,201.24,5.83375347]
[1731206287129,6.64515856,201.31,201.29,13.29884144]
[1731206287327,6.64515856,201.31,201.3,13.29884144]
[1731206288431,6.64515856,201.31,201.3,37.07572544]
[1731206291533,6.4651,201.35,201.3,37.07572544]
[1731206292125,6.4651,201.35,201.31,13.29884144]
[1731206293429,6.4651,201.35,201.32,13.29884144]
[1731206293941,6.4651,201.35,201.31,13.29884144]
[1731206294322,6.4651,201.35,201.32,13.29884144]
[1731206294728,16.3431,201.37,201.34,13.29884144]
[1731206295040,16.3431,201.37,201.35,13.29884144]
[1731206295235,6.0141,201.4,201.36,13.29884144]
[1731206295423,6.0141,201.4,201.37,13.29884144]
[1731206295621,6.0141,201.4,201.38,13.29884144]
[1731206295816,6.0141,201.4,201.31,23.776884]
[1731206296022,5.1,201.39,201.37,13.29884144]
[1731206297140,5.1,201.39,201.38,13.29884144]
[1731206297328,6.0141,201.45,201.38,13.29884144]
[1731206297528,5.1,201.44,201.42,13.29884144]
[1731206297826,5.1,201.44,201.4,13.29884144]
[1731206298633,13.29884144,201.43,201.36,13.29884144]
[1731206299012,13.29884144,201.42,201.36,13.29884144]
[1731206299913,13.29884144,201.43,201.37,13.29884144]
[1731206301932,18.39884144,201.44,201.37,13.29884144]
[1731206302238,5.1,201.44,201.38,13.29884144]
[1731206303132,18.39884144,201.44,201.38,13.29884144]
[1731206303328,13.29884144,201.44,201.37,13.29884144]
[1731206303736,6.0141,201.45,201.36,13.29884144]
[1731206303737,13.29884144,201.43,201.36,13.29884144]
[1731206303921,13.29884144,201.43,201.31,23.776884]
[1731206304123,1.1,201.42,201.36,13.29884144]
[1731206304341,1.1,201.41,201.37,13.29884144]
[1731206304825,1.1,201.41,201.36,13.29884144]
[1731206308546,1.1,201.41,201.35,13.29884144]
[1731206308733,1.1,201.41,201.36,13.29884144]
[1731206309237,1.1,201.4,201.36,13.29884144]
[1731206309437,1.1,201.4,201.3,5.83375347]
[1731206309438,29.87308832,201.39,201.3,5.83375347]
[1731206309646,29.87308832,201.39,201.29,8.51098832]
[1731206309647,8.51098832,201.37,201.29,8.51098832]
[1731206309815,8.51098832,201.37,201.3,8.51098832]
[1731206310637,8.51098832,201.37,201.31,8.51098832]
[1731206311143,1.1,201.38,201.31,8.51098832]
[1731206311444,1.1,201.38,201.33,13.30406526]
[1731206311615,1.1,201.38,201.35,13.30406526]
[1731206311820,21.3621,201.39,201.37,13.30406526]
[1731206312015,21.3621,201.39,201.38,13.30406526]
[1731206312016,6.0141,201.39,201.38,13.30406526]
[1731206312239,21.3621,201.44,201.38,13.30406526]
[1731206312425,34.66616526,201.44,201.38,13.30406526]
[1731206313222,34.66616526,201.44,201.37,2.65169768]
[1731206313223,34.66616526,201.44,201.37,13.30406526]
[1731206314042,34.66616526,201.44,201.35,2.71680276]
[1731206314043,21.3621,201.44,201.35,2.71680276]
[1731206314341,13.30406526,201.36,201.3,13.30406526]
[1731206314644,1.1,201.35,201.32,13.30406526]
[1731206315054,1.1,201.35,201.31,13.30406526]
[1731206315924,13.30406526,201.37,201.3,12.20406526]
[1731206316125,13.30406526,201.37,201.25,4.958]
[1731206316340,0.2,201.36,201.3,13.30406526]
[1731206316648,0.2,201.35,201.3,13.30406526]
[1731206317148,0.2,201.35,201.31,13.30406526]
[1731206318146,0.2,201.35,201.32,13.30406526]
[1731206318650,0.2,201.35,201.31,13.30406526]
[1731206320145,0.2,201.35,201.33,13.30406526]
[1731206320830,0.2,201.35,201.32,13.30406526]
[1731206322431,0.2,201.35,201.33,13.30406526]
[1731206323939,0.2,201.34,201.33,13.30406526]
[1731206326446,0.2,201.34,201.33,15.90878323]
[1731206329746,0.2,201.34,201.33,2.60471797]
[1731206329947,0.2,201.33,201.32,37.08094926]
[1731206331847,13.30406526,201.4,201.32,13.30406526]
[1731206332037,13.30406526,201.39,201.32,13.30406526]
[1731206332533,13.30406526,201.39,201.31,13.30406526]
[1731206333344,8.51443668,201.39,201.32,8.51443668]
[1731206333536,8.51443668,201.4,201.33,8.51443668]
[1731206333744,8.51443668,201.4,201.33,13.47243668]
[1731206334547,6.1777,201.42,201.34,8.51443668]
[1731206334732,8.51443668,201.41,201.33,4.958]
[1731206334937,8.51443668,201.41,201.34,8.51443668]
[1731206336738,8.51443668,201.4,201.33,13.47243668]
[1731206337553,6.0777,201.42,201.37,8.51443668]
[1731206337759,8.51443668,201.4,201.33,8.51443668]
[1731206338049,8.51443668,201.41,201.34,8.51443668]
[1731206338941,14.59213668,201.42,201.35,8.51443668]
[1731206339849,14.59213668,201.42,201.35,13.47243668]
[1731206340256,8.51443668,201.41,201.35,4.958]
[1731206340748,8.51443668,201.39,201.31,23.776884]
[1731206341051,8.51443668,201.39,201.32,4.958]
[1731206342461,6.0777,201.42,201.38,8.51443668]
[1731206342650,6.0777,201.42,201.24,0.1]
[1731206342651,31.22593668,201.39,201.24,0.1]
[1731206342841,22.7115,201.39,201.31,23.776884]
[1731206343041,22.7115,201.39,201.34,8.51443668]
[1731206343250,22.7115,201.39,201.29,23.776884]
[1731206343447,22.7115,201.39,201.32,4.958]
[1731206343656,22.7115,201.39,201.35,8.51443668]
[1731206344154,31.22593668,201.39,201.32,8.51443668]
[1731206344361,31.22593668,201.39,201.31,8.51443668]
[1731206344562,31.22593668,201.39,201.32,4.958]
[1731206344743,31.22593668,201.39,201.31,8.51443668]
[1731206344744,8.51443668,201.38,201.31,8.51443668]
[1731206345544,8.51443668,201.38,201.31,13.47243668]
[1731206345744,6.5066,201.39,201.36,8.51443668]
[1731206346363,6.5066,201.39,201.35,8.51443668]
[1731206346668,6.5066,201.39,201.35,13.47243668]
[1731206347552,6.5066,201.39,201.35,4.958]
[1731206347865,6.5066,201.39,201.33,8.51443668]
[1731206348163,6.5066,201.39,201.34,13.47243668]
[1731206348460,16.2049,201.44,201.39,23.776884]
[1731206348677,16.2049,201.44,201.4,8.51443668]
[1731206348966,16.2049,201.44,201.4,4.958]
[1731206349346,16.2049,201.44,201.4,13.47243668]
[1731206349548,6.5066,201.45,201.39,23.776884]
[1731206349549,6.5066,201.45,201.43,8.51443668]
[1731206349749,16.2049,201.49,201.44,8.51443668]
[1731206349968,16.2049,201.49,201.45,8.51443668]
[1731206350465,6.5066,201.5,201.47,8.51443668]
[1731206350669,16.2049,201.54,201.49,8.51443668]
[1731206350969,21.37273429,201.54,201.53,8.51443668]
[1731206351264,2.60219754,201.58,201.54,23.776884]
[1731206351465,8.51443668,201.61,201.55,8.51443668]
[1731206351648,19.827324,201.62,201.46,74.78661756]
[1731206351649,8.51443668,201.59,201.52,8.51443668]
[1731206352468,19.827324,201.62,201.54,8.51443668]
[1731206352650,19.827324,201.62,201.5,70.0]
[1731206352651,8.51443668,201.61,201.56,23.776884]
[1731206352844,28.34176068,201.62,201.56,23.776884]
[1731206353069,8.51443668,201.61,201.56,23.776884]
[1731206353271,19.827324,201.62,201.55,13.47243668]
[1731206353272,8.51443668,201.6,201.55,4.958]
[1731206353467,13.27575104,201.6,201.53,13.27575104]
[1731206354468,19.827324,201.62,201.54,13.27575104]
[1731206354653,13.27575104,201.61,201.54,13.27575104]
[1731206355270,6.5066,201.63,201.49,4.958]
[1731206355271,6.5066,201.63,201.59,13.27575104]
[1731206355486,6.5066,201.63,201.6,13.27575104]
[1731206356269,6.5066,201.63,201.59,13.27575104]
[1731206356453,6.5066,201.63,201.58,13.27575104]
[1731206356656,6.5066,201.63,201.59,23.776884]
[1731206357257,6.5066,201.63,201.58,13.27575104]
[1731206357968,19.78235104,201.63,201.56,13.27575104]
[1731206358172,13.27575104,201.6,201.53,13.27575104]
[1731206359272,13.27575104,201.58,201.51,13.27575104]
[1731206359578,13.27575104,201.57,201.5,13.27575104]
[1731206360653,13.27575104,201.58,201.51,13.27575104]
[1731206361066,13.27575104,201.57,201.5,13.27575104]
[1731206361268,13.27575104,201.57,201.51,13.27575104]
[1731206362465,6.6066,201.63,201.49,23.776884]
[1731206362466,13.27575104,201.6,201.53,13.27575104]
[1731206362762,13.27575104,201.59,201.53,23.776884]
[1731206363367,13.27575104,201.58,201.52,23.776884]
[1731206363652,13.27575104,201.59,201.52,37.05263504]
[1731206363951,6.5066,201.63,201.58,13.27575104]
[1731206364155,6.5066,201.63,201.6,13.27575104]
[1731206364355,6.5066,201.63,201.59,13.27575104]
[1731206364573,19.78235104,201.63,201.56,13.27575104]
[1731206364967,6.5066,201.63,201.57,13.27575104]
[1731206366580,6.5066,201.63,201.59,13.27575104]
[1731206366986,6.5066,201.63,201.58,37.05263504]
[1731206367473,6.5066,201.63,201.58,23.776884]
[1731206368682,6.5066,201.63,201.58,37.05263504]
[1731206369571,6.5066,201.63,201.58,23.776884]
[1731206369768,6.5066,201.63,201.57,13.27575104]
[1731206370081,13.27575104,201.62,201.55,13.27575104]
[1731206370381,13.27575104,201.62,201.56,23.776884]
[1731206371966,6.5066,201.63,201.57,13.27575104]
[1731206373077,19.78235104,201.63,201.56,37.05263504]
[1731206373580,15.00129475,201.63,201.56,32.27157875]
[1731206373789,8.49469475,201.62,201.56,23.776884]
[1731206375885,8.49469475,201.6,201.5,20.0]
[1731206376088,8.49469475,201.6,201.54,23.776884]
[1731206376285,8.49469475,201.6,201.53,23.776884]
[1731206376875,8.49469475,201.58,201.44,20.11671756]
[1731206377077,6.5066,201.63,201.48,8.49469475]
[1731206377078,8.49469475,201.55,201.48,8.49469475]
[1731206377384,15.1111,201.56,201.52,8.49469475]
[1731206379196,6.5066,201.63,201.45,70.0]
[1731206379197,8.49469475,201.6,201.54,8.49469475]
[1731206379486,13.27694023,201.61,201.54,13.27694023]
[1731206380620,13.27694023,201.61,201.53,23.776884]
[1731206380621,28.38804023,201.62,201.56,13.27694023]
[1731206380797,21.2313,201.68,201.62,23.776884]
[1731206380995,19.39714023,201.73,201.66,13.27694023]
[1731206381181,19.817247,201.72,201.68,13.27694023]
[1731206381490,19.39714023,201.73,201.66,37.05382423]
[1731206381688,6.1202,201.73,201.69,13.27694023]
[1731206382091,6.1202,201.73,201.68,13.27694023]
[1731206382296,6.1202,201.73,201.68,37.05382423]
[1731206382681,6.1202,201.73,201.66,13.27694023]
[1731206382892,6.1202,201.73,201.67,13.27694023]
[1731206383598,6.1202,201.73,201.68,13.27694023]
[1731206383771,6.1202,201.73,201.67,13.27694023]
[1731206384385,6.1202,201.73,201.68,13.27694023]
[1731206384580,21.2313,201.78,201.71,13.27694023]
[1731206384897,19.39714023,201.78,201.71,13.27694023]
[1731206385276,19.39714023,201.78,201.7,13.27694023]
[1731206385671,13.27694023,201.77,201.7,13.27694023]
[1731206385887,6.1202,201.83,201.77,23.776884]
[1731206386084,13.27694023,201.82,201.75,13.27694023]
[1731206386580,13.27694023,201.81,201.74,13.27694023]
[1731206386771,13.27694023,201.81,201.75,23.776884]
[1731206386971,6.1202,201.83,201.77,23.776884]
[1731206387793,6.1202,201.83,201.78,20.0]
[1731206388094,6.1202,201.83,201.78,33.27694023]
[1731206388680,6.1202,201.83,201.8,33.27694023]
[1731206388884,6.1202,201.83,201.82,33.27694023]
[1731206389182,6.1202,201.83,201.82,13.27694023]
[1731206389579,6.1202,201.83,201.82,33.27694023]
[1731206390103,6.1202,201.9,201.83,20.0]
[1731206390298,6.1202,201.9,201.87,13.27694023]
[1731206390477,6.1202,201.9,201.88,13.27694023]
[1731206390792,6.1202,201.9,201.89,13.27694023]
[1731206390985,6.1202,201.9,201.89,33.27694023]
[1731206391777,6.1202,201.9,201.88,20.0]
[1731206393698,6.1202,201.9,201.88,13.27694023]
[1731206394197,6.1202,201.9,201.89,20.0]
[1731206394498,15.542,201.97,201.89,13.27694023]
[1731206394677,867.9,202.74,201.88,20.0]
[1731206394678,6.3424,202.06,201.97,20.0]
[1731206394883,6.3424,202.06,202.04,13.27694023]
[1731206395498,19.61934023,202.06,201.99,13.27694023]
[1731206395677,19.61934023,202.06,202.0,20.0]
[1731206395883,6.3424,202.06,202.01,13.27694023]
[1731206396085,6.3424,202.06,202.02,13.27694023]
[1731206396691,6.3424,202.06,202.01,13.27694023]
[1731206397184,6.3424,202.06,201.92,20.0]
[1731206397185,6.3424,202.06,202.02,13.27694023]
[1731206397904,6.3424,202.06,202.04,13.27694023]
[1731206398607,6.3424,202.06,202.05,13.27694023]
[1731206399099,6.3424,202.06,202.03,13.27694023]
[1731206399288,6.3424,202.06,202.02,41.14295395]
[1731206399493,6.3424,202.06,202.0,21.14295395]
[1731206399706,6.3424,202.06,202.01,20.0]
[1731206400401,6.3424,202.06,202.01,21.14295395]
[1731206400588,6.3424,202.06,202.0,21.14295395]
[1731206400789,27.48535395,202.06,201.99,21.14295395]
[1731206401399,6.3424,202.06,202.0,21.14295395]
[1731206403987,27.48535395,202.06,201.99,21.14295395]
[1731206404189,27.48535395,202.06,201.98,21.14295395]
[1731206404190,21.14295395,202.05,201.98,21.14295395]
[1731206404487,36.58495395,202.02,201.95,21.14295395]
[1731206404896,15.442,202.02,201.96,21.14295395]
[1731206405100,15.442,202.02,201.97,21.14295395]
[1731206408391,15.442,202.02,201.97,20.0]
[1731206408587,15.442,202.02,201.97,21.14295395]
[1731206408793,21.24295395,202.01,201.95,21.14295395]
[1731206409187,0.1,202.01,201.96,21.14295395]
[1731206409807,15.442,202.02,201.99,21.14295395]
[1731206410011,15.442,202.02,201.9,26.10095395]
[1731206410012,15.442,202.02,202.01,21.14295395]
[1731206410216,15.442,202.02,201.99,21.14295395]
[1731206410419,15.442,202.02,201.98,21.14295395]
[1731206410707,21.24295395,202.01,201.82,70.1]
[1731206410913,21.24295395,202.01,201.95,21.14295395]
[1731206410914,0.1,202.01,201.95,21.14295395]
[1731206411307,15.442,202.02,201.97,21.14295395]
[1731206411695,15.542,202.02,201.97,21.14295395]
[1731206411896,15.542,202.02,201.96,21.14295395]
[1731206412289,21.14295395,202.0,201.93,21.14295395]
[1731206412886,21.24295395,202.0,201.93,21.14295395]
[1731206413110,21.14295395,201.99,201.92,21.14295395]
[1731206415901,21.14295395,201.98,201.92,21.14295395]
[1731206416111,21.14295395,201.99,201.92,21.14295395]
[1731206417794,21.14295395,201.97,201.91,21.14295395]
[1731206418140,21.14295395,201.99,201.93,21.14295395]
[1731206418317,21.14295395,201.99,201.85,23.776884]
[1731206418318,21.14295395,201.98,201.92,21.14295395]
[1731206418617,21.24295395,201.98,201.92,21.14295395]
[1731206419198,21.24295395,201.98,201.91,21.14295395]
[1731206419414,6.4424,202.01,201.96,13.23073803]
[1731206419625,6.3424,202.01,201.96,13.23073803]
[1731206419801,6.3424,202.01,201.95,13.23073803]
[1731206420207,19.57313803,202.01,201.95,13.23073803]
[1731206420401,6.3424,202.01,201.95,13.23073803]
[1731206420610,11.50373968,202.01,201.95,13.23073803]
[1731206421318,24.73447771,202.01,201.94,13.23073803]
[1731206421894,13.23073803,202.0,201.94,13.23073803]
[1731206422095,24.83447771,202.01,201.95,13.23073803]
[1731206422604,13.33073803,201.99,201.93,13.23073803]
[1731206423699,0.1,201.99,201.94,13.23073803]
[1731206423901,24.83447771,202.01,201.95,13.23073803]
[1731206424216,11.50373968,202.01,201.96,13.23073803]
[1731206424799,11.50373968,202.01,201.99,13.23073803]
[1731206425015,6.3424,202.01,201.97,13.23073803]
[1731206426509,6.3424,202.01,202.0,13.23073803]
[1731206427718,6.3424,202.01,201.99,13.23073803]
[1731206428309,19.57313803,202.01,201.95,13.23073803]
[1731206429199,13.33073803,201.99,201.92,13.23073803]
[1731206429409,13.33073803,201.99,201.93,13.23073803]
[1731206430220,13.35622803,202.0,201.93,13.23073803]
[1731206430524,6.4424,202.01,201.95,13.23073803]
[1731206430918,19.67313803,202.01,201.95,13.23073803]
[1731206431100,19.67313803,202.01,201.94,13.23073803]
[1731206431820,19.67313803,202.01,201.95,13.23073803]
[1731206432210,19.67313803,202.01,201.94,13.23073803]
[1731206433022,19.57313803,202.01,201.94,13.23073803]
[1731206433920,6.3424,202.01,201.95,13.23073803]
[1731206434924,19.57313803,202.01,201.94,13.23073803]
[1731206436331,19.57313803,202.01,201.84,26.13687036]
[1731206436332,13.23073803,201.98,201.91,13.23073803]
[1731206436822,0.22549,202.0,201.85,20.0]
[1731206436823,13.23073803,201.99,201.92,13.23073803]
[1731206438705,13.456228,202.0,201.85,20.0]
[1731206438706,13.23073803,201.98,201.91,13.23073803]
[1731206438907,19.57313803,202.01,201.93,13.23073803]
[1731206439115,6.3424,202.01,201.95,13.23073803]
[1731206441025,6.3424,202.01,201.98,13.23073803]
[1731206441616,6.3424,202.01,201.97,13.23073803]
[1731206442809,6.3424,202.01,201.91,43.776884]
[1731206442810,6.3424,202.01,201.98,13.23073803]
[1731206443112,5.16013226,202.04,201.91,43.776884]
[1731206443113,5.16013226,202.04,202.0,13.23073803]
[1731206443306,6.0154,202.06,202.01,13.23073803]
[1731206443505,6.0154,202.06,202.02,13.23073803]
[1731206445011,6.0154,202.06,202.0,13.23073803]
[1731206445531,19.24613803,202.06,202.0,13.23073803]
[1731206445708,19.24613803,202.06,201.99,13.23073803]
[1731206446922,6.0154,202.06,202.0,13.23073803]
[1731206447823,6.0154,202.06,201.92,20.0157]
[1731206447824,16.3536,202.07,202.02,13.23073803]
[1731206448020,16.3536,202.07,202.03,13.23073803]
[1731206449931,16.3536,202.07,202.04,13.23073803]
[1731206450434,16.3536,202.07,202.03,13.23073803]
[1731206451335,16.3536,202.07,202.02,13.23073803]
[1731206451519,16.3536,202.07,202.03,13.23073803]
[1731206452541,16.3536,202.07,202.04,13.23073803]
[1731206452720,13.230738,202.08,202.06,13.23073803]
[1731206452925,6.0154,202.11,202.07,13.23073803]
[1731206453122,6.0154,202.11,202.06,13.23073803]
[1731206453641,6.0154,202.11,202.05,13.23073803]
[1731206453935,6.0154,202.11,202.07,13.23073803]
[1731206454715,6.0154,202.11,202.08,13.23073803]
[1731206454934,13.230738,202.14,202.1,13.23073803]
[1731206455139,6.3521,202.16,202.12,13.23073803]
[1731206455326,11.50935818,202.16,202.11,13.23073803]
[1731206455510,11.50935818,202.16,202.08,20.0]
[1731206455736,11.50935818,202.16,202.11,13.23073803]
[1731206456234,24.74009621,202.16,202.09,13.23073803]
[1731206456421,13.23073803,202.15,202.08,33.23073803]
[1731206456835,13.23073803,202.15,202.08,13.23073803]
[1731206457021,13.23073803,202.15,202.04,2.59436866]
[1731206457022,13.23073803,202.14,202.07,13.23073803]
[1731206457534,13.23073803,202.15,202.08,13.23073803]